fUSD/lending_fUSD_20260401
["ID","MTS","AMOUNT","RATE_DAILY","PERIOD"]
[419273683,1775083838914,-363.36374454,0.000159,2]
[419273684,1775083838923,-300.48850476,0.000159,2]
[419273685,1775083838932,-4307.08457462,0.000159,2]
[419273686,1775083838941,-9434.0,0.00015973,2]
[419273687,1775083838950,-11708.0,0.00015973,2]
[419273688,1775083838959,-500.0,0.00015973,2]
[419273689,1775083838968,-158.11524678,0.00015984,2]
[419273690,1775083838979,-583.16827771,0.0001599,2]
[419273691,1775083838990,-583.16827771,0.0001599,2]
[419273692,1775083839000,-583.16827771,0.0001599,2]
[419273693,1775083839011,-500.0,0.00015999,2]
[419273694,1775083839021,-500.0,0.00015999,2]
[419273695,1775083839030,-500.0,0.00015999,2]
[419273696,1775083839040,-500.0,0.00015999,2]
[419273697,1775083839049,-500.0,0.00015999,2]
[419273698,1775083839058,-500.0,0.00015999,2]
[419273699,1775083839067,-500.0,0.00015999,2]
[419273700,1775083839078,-500.0,0.00015999,2]
[419273701,1775083839088,-500.0,0.00015999,2]
[419273702,1775083839098,-500.0,0.00015999,2]
[419273703,1775083839110,-500.0,0.00015999,2]
[419273704,1775083839120,-500.0,0.00015999,2]
[419273705,1775083839131,-500.0,0.00015999,2]
[419273706,1775083839141,-500.0,0.00015999,2]
[419273707,1775083839151,-500.0,0.00015999,2]
[419273708,1775083839160,-500.0,0.00015999,2]
[419273709,1775083839169,-500.0,0.00015999,2]
[419273710,1775083839178,-500.0,0.00015999,2]
[419273711,1775083839187,-500.0,0.00015999,2]
[419273712,1775083839196,-500.0,0.00015999,2]
[419273713,1775083839205,-500.0,0.00015999,2]
[419273714,1775083839214,-500.0,0.00015999,2]
[419273715,1775083839223,-500.0,0.00015999,2]
[419273716,1775083839232,-500.0,0.00015999,2]
[419273717,1775083839241,-500.0,0.00015999,2]
[419273718,1775083839250,-500.0,0.00015999,2]
[419273719,1775083839260,-500.0,0.00015999,2]
[419273720,1775083839269,-500.0,0.00015999,2]
[419273721,1775083839279,-500.0,0.00015999,2]
[419273722,1775083839287,-500.0,0.00015999,2]
[419273723,1775083839298,-500.0,0.00015999,2]
[419273724,1775083839307,-500.0,0.00015999,2]
[419273725,1775083839316,-500.0,0.00015999,2]
[419273726,1775083839325,-498.8200171,0.00015999,2]
[419273727,1775083839334,-500.0,0.00015999,2]
[419273728,1775083839343,-2053.0,0.00016,5]
[419273729,1775083839352,-1645.0,0.00016,5]
[419273730,1775083839361,-912011.68870291,0.00016,2]
[419273731,1775083839378,-28684.69679848,0.00016,2]
[419273732,1775083839390,-22353.76076004,0.00016,2]
[419273733,1775083839404,-341.50517263,0.00016,2]
[419273734,1775083839422,-779.55147576,0.00016,2]
[419273735,1775083839435,-654.6,0.00016,2]
[419273736,1775083839448,-1504.63588886,0.00016,2]
[419273739,1775083840279,-378.66,0.00016,2]
[419273740,1775083840544,-2325133.14245243,0.00016,2]
[419273741,1775083840909,-521.75981653,0.00016,2]
[419273746,1775083843206,-3400.0,0.00016,2]
[419273747,1775083843260,-253.0,0.00016,2]
[419273748,1775083843473,-761.0,0.00016,2]
[419273750,1775083843578,-16620.27,0.00016,2]
[419274009,1775083845997,-5570.45453968,0.00016,2]
[419274031,1775083846207,-91660.89774847,0.00016,2]
[419274038,1775083846265,-270.39079621,0.00016,2]
[419274039,1775083846276,-3568.01656786,0.00016,2]
[419274057,1775083846439,-3828.02471361,0.00016,2]
[419274059,1775083846450,-88603.5846853,0.00016,2]
[419274061,1775083846460,-1634.22737797,0.00016,2]
[419274088,1775083846733,260.0,7.718e-05,2]
[419274281,1775083877827,288.1162,0.00016,120]
[419274309,1775085007241,4505.86431819,9.5e-05,3]
[419274310,1775085007268,40070.34411848,9.5e-05,3]
[419274311,1775085032105,-447.18897472,0.00011,2]
[419274312,1775085032157,-400.0,0.00011,2]
[419274313,1775085032169,-584.03326495,0.00011,2]
[419274314,1775085032211,-431.21847581,0.00011,2]
[419274315,1775085032220,-250.0,0.00011609,2]
[419274316,1775085032230,-250.0,0.00011975,2]
[419274317,1775085032239,-250.0,0.000121,2]
[419274318,1775085032249,-485.30866739,0.00012219,2]
[419274319,1775085032259,-1151.0,0.00012219,2]
[419274320,1775085032268,-3991.81,0.0001222,2]
[419274321,1775085032278,-200.0,0.0001222,2]
[419274322,1775085032288,-485.30866739,0.0001222,2]
[419274323,1775085032297,-485.30866739,0.0001222,2]
[419274324,1775085032307,-250.0,0.00013,2]
[419274325,1775085032317,-510.0,0.00013111,2]
[419274326,1775085032327,-500.0,0.00014164,2]
[419274327,1775085032337,-150.0,0.00014478,2]
[419274328,1775085032347,-9503.28,0.00014504,2]
[419274329,1775085032357,-999.99,0.00014504,2]
[419274330,1775085032369,-3128.15,0.00014504,2]
[419274331,1775085032380,-150.99,0.00014504,2]
[419274332,1775085032390,-2344.19300033,0.00014504,2]
[419274333,1775085032403,-7655.79699967,0.00014504,2]
[419274334,1775085032412,-500.0,0.00014829,2]
[419274335,1775085032422,-252.67027067,0.00014829,2]
[419274336,1775085032434,-247.32972933,0.00014829,2]
[419274337,1775085032445,-45.64727069,0.00015,2]
[419274338,1775085032471,-254.35272931,0.00015,2]
[419274339,1775085032481,-45.64727069,0.00015173,2]
[419274349,1775085032588,-120.16272931,0.00015173,2]
[419274351,1775085032597,-174.61919141,0.00015199,2]
[419274353,1775085032607,-500.0,0.000154,2]
[419274355,1775085032616,-200.0,0.000154,5]
[419274357,1775085032626,-500.0,0.000155,5]
[419274359,1775085032635,-800.0,0.000156,5]
[419274361,1775085032644,-855.16862305,0.00015634,2]
[419274363,1775085032654,-1100.0,0.000157,5]
[419274365,1775085032663,-181.08010149,0.00015747,2]
[419274367,1775085032675,-48026.7593,0.000158,2]
[419274369,1775085032685,-2495.67509052,0.000158,2]
[419274371,1775085032694,-2649.65,0.000158,2]
[419274373,1775085032704,-1400.0,0.000158,5]
[419274375,1775085032714,-401.51954264,0.000158,2]
[419274376,1775085032724,-776.23511964,0.000158,2]
[419274377,1775085032733,-712.97834754,0.000158,2]
[419274378,1775085032743,-176.3,0.00015811,2]
[419274379,1775085032753,-176.3,0.00015811,2]
[419274380,1775085032763,-176.3,0.00015811,2]
[419274381,1775085032772,-176.3,0.00015811,2]
[419274382,1775085032782,-2495.67509046,0.00015811,2]
[419274383,1775085032792,-776.23511955,0.00015811,2]
[419274384,1775085032802,-2495.67509046,0.00015822,2]
[419274385,1775085032811,-776.23511955,0.00015822,2]
[419274386,1775085032820,-2495.67509046,0.00015833,2]
[419274387,1775085032830,-776.23511955,0.00015833,2]
[419274388,1775085032839,-176.3,0.0001584,2]
[419274389,1775085032849,-176.3,0.0001584,2]
[419274390,1775085032858,-176.3,0.0001584,2]
[419274391,1775085032868,-176.3,0.0001584,2]
[419274392,1775085032878,-2495.67509046,0.00015844,2]
[419274393,1775085032887,-776.23511955,0.00015844,2]
[419274394,1775085032897,-712.97834752,0.0001585,2]
[419274395,1775085032907,-500.0,0.00015855,2]
[419274396,1775085032916,-500.0,0.00015855,2]
[419274397,1775085032926,-500.0,0.00015855,2]
[419274398,1775085032936,-500.0,0.00015855,2]
[419274399,1775085032945,-500.0,0.00015855,2]
[419274400,1775085032954,-500.0,0.00015855,2]
[419274401,1775085032963,-500.0,0.00015855,2]
[419274402,1775085032973,-500.0,0.00015855,2]
[419274403,1775085032982,-420.67527002,0.00015855,2]
[419274404,1775085032991,-500.0,0.00015855,2]
[419274405,1775085033000,-500.0,0.00015855,2]
[419274406,1775085033010,-2495.67509046,0.00015856,2]
[419274407,1775085033019,-776.23511955,0.00015856,2]
[419274408,1775085033030,-500.0,0.00015856,2]
[419274409,1775085033040,-1401.34,0.00015863,2]
[419274410,1775085033049,-1314.94006716,0.00015867,2]
[419274411,1775085034597,-1180.7350233,0.00015867,2]
[419274412,1775085034608,-776.23511955,0.00015867,2]
[419274413,1775085034617,-2495.67509046,0.00015878,2]
[419274414,1775085034626,-776.23511955,0.00015878,2]
[419274415,1775085034636,-1250.15746867,0.00015889,2]
[419274416,1775085034649,-871.83149132,0.00015889,2]
[419274417,1775085034661,-294.40797712,0.00015889,2]
[419274418,1775085034694,-79.27815335,0.00015889,2]
[419274419,1775085034705,-776.23511955,0.00015889,2]
[419274420,1775085034714,-1326.86633754,0.0001589,2]
[419274422,1775085038236,-673.13366246,0.0001589,2]
[419274423,1775085038246,-1000.0,0.00015899,2]
[419274424,1775085038256,-240.2668152,0.00015899,2]
[419274425,1775085038266,-448.23873062,0.00015899,2]
[419274426,1775085038277,-275.50789908,0.00015899,2]
[419274427,1775085038286,-500.0,0.00015899,2]
[419274428,1775085038295,-525.21605754,0.00015899,2]
[419274429,1775085038307,-271.15826287,0.00015899,2]
[419274430,1775085038319,-500.0,0.00015899,2]
[419274431,1775085038328,-500.0,0.00015899,2]
[419274432,1775085038337,-220.15513885,0.00015899,2]
[419274433,1775085038346,-498.8200171,0.00015899,2]
[419274434,1775085038355,-13114.90387506,0.00015899,2]
[419274435,1775085038364,-500.0,0.00015899,2]
[419274436,1775085038373,-500.0,0.00015899,2]
[419274437,1775085038382,-500.0,0.00015899,2]
[419274438,1775085038391,-500.0,0.00015899,2]
[419274439,1775085038400,-500.0,0.00015899,2]
[419274440,1775085038410,-500.0,0.00015899,2]
[419274441,1775085038420,-500.0,0.00015899,2]
[419274442,1775085038430,-500.0,0.00015899,2]
[419274443,1775085038439,-525881.4028,0.000159,2]
[419274444,1775085038448,-1000.0,0.000159,2]
[419274445,1775085038457,-285118.338,0.000159,2]
[419274446,1775085038467,-209.78091934,0.000159,2]
[419274447,1775085038476,-2495.67509046,0.000159,2]
[419274448,1775085038486,-200.0,0.000159,5]
[419274449,1775085038494,-1367.96160822,0.000159,2]
[419274450,1775085038503,-712.97834752,0.000159,2]
[419274451,1775085038521,-300.48850476,0.000159,2]
[419274452,1775085038534,-18320.17224373,0.000159,2]
[419274453,1775085038545,-776.23511955,0.000159,2]
[419274454,1775085038555,-222.86835476,0.000159,2]
[419274455,1775085038566,-370.35780072,0.000159,2]
[419274456,1775085038576,-4307.08457462,0.000159,2]
[419274457,1775085038586,-21142.0,0.00015973,2]
[419274458,1775085038596,-500.0,0.00015973,2]
[419274459,1775085038605,-527.58662996,0.00015973,2]
[419274460,1775085038615,-500.0,0.00015973,2]
[419274461,1775085038624,-500.0,0.00015973,2]
[419274462,1775085038634,-390.31346696,0.00015973,2]
[419274463,1775085038643,-418.56315304,0.00015973,2]
[419274464,1775085038653,-500.0,0.00015973,2]
[419274465,1775085038663,-500.0,0.00015973,2]
[419274466,1775085038672,-500.44640306,0.00015973,2]
[419274467,1775085038681,-500.50490882,0.00015973,2]
[419274468,1775085038691,-500.0,0.00015973,2]
[419274469,1775085038700,-388.43757161,0.00015973,2]
[419274470,1775085038710,-500.0,0.00015973,2]
[419274471,1775085038720,-500.0,0.00015973,2]
[419274472,1775085038729,-500.0,0.00015973,2]
[419274473,1775085038738,-240.5527515,0.00015984,2]
[419274474,1775085038748,-249.93340054,0.00015984,2]
[419274475,1775085038758,-222.75488849,0.00015984,2]
[419274476,1775085038769,-163.31429911,0.00015984,2]
[419274477,1775085038779,-177.59559625,0.00015984,2]
[419274478,1775085038788,-583.16827771,0.0001599,2]
[419274479,1775085038798,-583.16827771,0.0001599,2]
[419274480,1775085038807,-583.16827771,0.0001599,2]
[419274481,1775085038816,-151.0,0.00015997,2]
[419274482,1775085038826,-1642.0,0.00015999,5]
[419274483,1775085038835,-502.08594282,0.00015999,2]
[419274484,1775085038845,-500.0,0.00015999,2]
[419274485,1775085038854,-500.0,0.00015999,2]
[419274486,1775085038864,-500.0,0.00015999,2]
[419274487,1775085038872,-500.0,0.00015999,2]
[419274488,1775085038882,-500.0,0.00015999,2]
[419274489,1775085038891,-500.0,0.00015999,2]
[419274490,1775085038900,-500.0,0.00015999,2]
[419274491,1775085038910,-500.0,0.00015999,2]
[419274492,1775085038919,-500.0,0.00015999,2]
[419274493,1775085038928,-500.0,0.00015999,2]
[419274494,1775085038938,-500.0,0.00015999,2]
[419274495,1775085038947,-500.0,0.00015999,2]
[419274496,1775085038957,-500.0,0.00015999,2]
[419274497,1775085038966,-500.0,0.00015999,2]
[419274498,1775085038975,-500.0,0.00015999,2]
[419274499,1775085038986,-500.0,0.00015999,2]
[419274500,1775085038996,-500.0,0.00015999,2]
[419274501,1775085039007,-500.0,0.00015999,2]
[419274502,1775085039016,-500.0,0.00015999,2]
[419274503,1775085039026,-500.0,0.00015999,2]
[419274504,1775085039042,-500.0,0.00015999,2]
[419274505,1775085039053,-500.0,0.00015999,2]
[419274506,1775085039067,-500.0,0.00015999,2]
[419274507,1775085039078,-500.0,0.00015999,2]
[419274508,1775085039087,-500.0,0.00015999,2]
[419274509,1775085039098,-500.0,0.00015999,2]
[419274510,1775085039108,-500.0,0.00015999,2]
[419274511,1775085039118,-500.0,0.00015999,2]
[419274512,1775085039129,-500.0,0.00015999,2]
[419274513,1775085039138,-2055.0,0.00016,5]
[419274514,1775085039149,-129901.24164263,0.00016,2]
[419274515,1775085039172,-6439.9,0.00016,2]
[419274516,1775085039184,-1256.40417357,0.00016,2]
[419274517,1775085039196,-500.0,0.00016,2]
[419274519,1775085040511,-995.29157668,0.00016,2]
[419274520,1775085040525,-535.94538832,0.00016,2]
[419274521,1775085041127,-1028.86736182,0.00016,2]
[419274538,1775085041921,-1588.39526749,0.00016,2]
[419274548,1775085043460,-51148.38964216,0.00016,2]
[419274549,1775085043514,-437.30305971,0.00016,2]
[419274562,1775085046495,-3273.76993,0.00016,2]
[419274563,1775085046508,-7876.31883035,0.00016,2]
[419274564,1775085109642,150.0,0.000159,120]
[419274572,1775085977399,104.27,7.243e-05,2]
[419274573,1775085977422,86.84,7.243e-05,2]
[419274609,1775086233468,-638.34053726,0.000111,5]
[419274610,1775086233479,-369.65946274,0.000111,5]
[419274611,1775086233489,-600.0,0.00011128,2]
[419274612,1775086233498,-163.14,0.00011657,2]
[419274613,1775086233508,-600.0,0.0001166,2]
[419274614,1775086233518,-150.0,0.0001166,7]
[419274615,1775086233527,-122.04683167,0.00011831,2]
[419274616,1775086233539,-797.59445327,0.00011831,2]
[419274617,1775086233551,-411.96871506,0.00011831,2]
[419274618,1775086233560,-353.74286071,0.0001204,2]
[419274619,1775086233572,-246.25713929,0.0001204,2]
[419274620,1775086233581,-303.56242093,0.0001204,2]
[419274621,1775086233591,-250.0,0.00013,2]
[419274622,1775086233601,-510.0,0.00013111,2]
[419274623,1775086233610,-12.5559631,0.00014211,2]
[419274624,1775086233634,-154.1040369,0.00014211,2]
[419274625,1775086233644,-200.0,0.0001439,2]
[419274626,1775086233653,-895.28635567,0.00014436,2]
[419274627,1775086233665,-500.0,0.00014436,2]
[419274628,1775086233677,-104.71364433,0.00014436,2]
[419274629,1775086233687,-1200.0,0.00014458,2]
[419274630,1775086233697,-379.15,0.00014459,2]
[419274631,1775086233706,-191.11,0.00014487,2]
[419274632,1775086233716,-166.66,0.0001451,2]
[419274633,1775086233725,-3609.17,0.00014562,2]
[419274634,1775086233734,-457.83535181,0.00014569,2]
[419274635,1775086233746,-2113.11003804,0.00014569,2]
[419274636,1775086233757,-4267.36355357,0.00014569,2]
[419274637,1775086233768,-786.79848397,0.00014569,2]
[419274638,1775086233780,-1148.76047939,0.00014569,2]
[419274639,1775086233791,-1337.70986208,0.00014569,2]
[419274641,1775086238349,-841.18953619,0.00014569,2]
[419274642,1775086238404,-5194.8976806,0.00014569,2]
[419274643,1775086238461,-2589.49791791,0.00014569,2]
[419274644,1775086238472,-719.0,0.00014569,2]
[419274645,1775086238571,-20060.49647241,0.00014569,2]
[419274646,1775086238634,-422.58467,0.00014569,2]
[419274647,1775086238686,-25583.67595403,0.00014569,2]
[419274648,1775086238696,-1600.0,0.00014571,2]
[419274649,1775086238708,-184.66,0.00014612,2]
[419274650,1775086238718,-500.0,0.00014672,2]
[419274651,1775086238728,-164.79,0.00014678,2]
[419274652,1775086238739,-161.0,0.0001472,2]
[419274653,1775086238749,-166.66,0.00014809,2]
[419274654,1775086238760,-166.66,0.00015108,2]
[419274655,1775086238770,-174.61919141,0.00015199,2]
[419274656,1775086238779,-500.0,0.000153,5]
[419274657,1775086238790,-288.22335339,0.0001532,2]
[419274659,1775086238800,-700.0,0.00015346,2]
[419274661,1775086238810,-1000.0,0.000154,5]
[419274663,1775086238819,-166.66,0.00015408,2]
[419274665,1775086238828,-1500.0,0.000155,5]
[419274667,1775086238838,-2000.0,0.000156,5]
[419274669,1775086238848,-10505.9959,0.000157,2]
[419274671,1775086238859,-2000.0,0.000157,2]
[419274673,1775086238869,-2500.0,0.000157,5]
[419274675,1775086238878,-166.66,0.00015707,2]
[419274677,1775086238887,-500.0,0.0001571,2]
[419274679,1775086238896,-500.0,0.0001571,2]
[419274680,1775086238905,-500.0,0.0001571,2]
[419274681,1775086238914,-500.0,0.0001571,2]
[419274682,1775086238924,-500.0,0.0001571,2]
[419274683,1775086238933,-331.02953618,0.0001571,2]
[419274684,1775086238942,-181.08010149,0.00015747,2]
[419274685,1775086238951,-1000.0,0.000158,2]
[419274686,1775086238961,-500.0,0.000158,5]
[419274687,1775086238970,-2000.0,0.000158,2]
[419274688,1775086238979,-508.53654,0.0001584,2]
[419274689,1775086238988,-508.53654,0.0001584,2]
[419274690,1775086238998,-508.53655,0.0001584,2]
[419274691,1775086239007,-602.29725223,0.00015898,2]
[419274693,1775086239016,-500.0,0.00015899,2]
[419274695,1775086239026,-500.0,0.00015899,2]
[419274697,1775086239035,-500.0,0.00015899,2]
[419274699,1775086239044,-500.0,0.00015899,2]
[419274701,1775086239054,-500.0,0.00015899,3]
[419274703,1775086239063,-83.45079467,0.00015899,4]
[419274795,1775086246812,-416.54920533,0.00015899,4]
[419274796,1775086246822,-502.08594282,0.00015899,2]
[419274797,1775086246832,-99.87896095,0.00015899,2]
[419274798,1775086246925,-400.12103905,0.00015899,2]
[419274799,1775086246934,-500.0,0.00015899,2]
[419274800,1775086246945,-196.49362518,0.00015899,2]
[419274826,1775086275908,150.0,0.000159,120]
[419274838,1775087431622,-307.67752124,0.00013111,2]
[419274839,1775087431634,-202.32247876,0.00013111,2]
[419274840,1775087431644,-158.48608269,0.00013507,2]
[419274841,1775087431655,-36.51391731,0.00013507,2]
[419274842,1775087431664,-500.0,0.00013904,2]
[419274843,1775087431674,-297.82647719,0.00013957,2]
[419274844,1775087431689,-2.17352281,0.00013957,2]
[419274845,1775087431699,-300.0,0.00013957,2]
[419274846,1775087431708,-300.0,0.00013957,2]
[419274847,1775087431718,-300.0,0.00013957,2]
[419274848,1775087431727,-195.0,0.00013963,2]
[419274849,1775087431737,-195.0,0.00013963,2]
[419274850,1775087431746,-150.0,0.00014421,2]
[419274851,1775087431756,-1200.0,0.00014421,2]
[419274852,1775087431765,-2500.0,0.00014422,2]
[419274853,1775087431775,-2500.0,0.00014422,2]
[419274854,1775087431784,-2500.0,0.00014422,2]
[419274855,1775087431794,-2500.0,0.00014422,2]
[419274856,1775087431804,-2500.0,0.00014422,2]
[419274857,1775087431814,-500.0,0.00014422,2]
[419274858,1775087431824,-500.0,0.00014422,2]
[419274859,1775087431834,-188.33448171,0.00014422,2]
[419274861,1775087431843,-500.0,0.00014422,2]
[419274862,1775087431852,-300.0,0.00014422,2]
[419274864,1775087431862,-195.0,0.00014422,2]
[419274865,1775087431871,-200.0,0.00014422,2]
[419274866,1775087431880,-500.0,0.00014422,2]
[419274867,1775087431889,-3319.42,0.00014436,2]
[419274868,1775087431900,-500.0,0.000145,2]
[419274869,1775087431910,-167.54621865,0.000145,2]
[419274870,1775087431923,-500.0,0.000145,2]
[419274871,1775087431934,-5347.21,0.0001453,2]
[419274872,1775087431944,-3514.15,0.00014553,2]
[419274873,1775087431955,-3240.0,0.00014988,2]
[419274874,1775087431964,-12511.2693646,0.00015026,2]
[419274875,1775087431973,-2791.712034,0.00015026,2]
[419274876,1775087431983,-6184.2438911,0.00015026,2]
[419274877,1775087431992,-210.95,0.00015045,2]
[419274878,1775087432001,-200.0,0.00015085,2]
[419274879,1775087432010,-2321.81184661,0.00015186,2]
[419274880,1775087432022,-2205.28815339,0.00015186,2]
[419274881,1775087432031,-250.0,0.00015199,2]
[419274882,1775087432040,-81.42736574,0.00015199,2]
[419274883,1775087432051,-93.19182567,0.00015199,2]
[419274884,1775087432061,-250.0,0.00015199,2]
[419274885,1775087432070,-2000.0,0.000153,2]
[419274886,1775087432079,-200.0,0.000153,5]
[419274887,1775087432089,-397.93632857,0.0001532,2]
[419274888,1775087432098,-365.75536428,0.0001532,2]
[419274889,1775087432108,-2465.0,0.000154,2]
[419274890,1775087432117,-500.0,0.000154,5]
[419274891,1775087432126,-182.14633925,0.000155,5]
[419274892,1775087432138,-517.85366075,0.000155,5]
[419274893,1775087432147,-247.65404215,0.00015507,2]
[419274894,1775087432163,-1130.87856688,0.00015507,2]
[419274895,1775087432175,-1536.56739097,0.00015507,2]
[419274896,1775087432184,-255.0,0.00015546,2]
[419274897,1775087432194,-1000.0,0.000156,5]
[419274898,1775087432203,-1200.0,0.000157,5]
[419274899,1775087432214,-181.08010149,0.00015747,2]
[419274900,1775087432223,-8565.50922485,0.00015799,2]
[419274901,1775087432235,-406.50499985,0.00015799,2]
[419274902,1775087432246,-673.699995,0.00015799,2]
[419274903,1775087432258,-400.45,0.00015799,2]
[419274904,1775087432270,-15230.4967803,0.00015799,2]
[419274905,1775087432279,-2500.0,0.00015799,2]
[419274906,1775087432289,-613.2347958,0.00015799,2]
[419274907,1775087432299,-200.0,0.000158,5]
[419274908,1775087432309,-613.23479571,0.0001581,2]
[419274909,1775087432319,-613.23479571,0.00015821,2]
[419274910,1775087432328,-613.23479571,0.00015833,2]
[419274911,1775087432338,-613.23479571,0.00015844,2]
[419274912,1775087432347,-613.23479571,0.00015855,2]
[419274913,1775087432356,-613.23479571,0.00015866,2]
[419274914,1775087432366,-613.23479571,0.00015878,2]
[419274915,1775087432376,-613.23479571,0.00015889,2]
[419274916,1775087432385,-157.1,0.00015889,3]
[419274917,1775087432395,-2915.1,0.00015895,2]
[419274918,1775087432404,-185.47,0.00015895,2]
[419274919,1775087432414,-160.51,0.00015898,2]
[419274920,1775087432424,-36667.99498323,0.00015899,2]
[419274921,1775087432436,-1862.303204,0.00015899,2]
[419274922,1775087437584,-4035.9344515,0.00015579,2]
[419274923,1775087437596,-473.0655485,0.00015876,2]
[419274924,1775087437639,-28.79515178,0.00015876,2]
[419274925,1775087437649,-471.20484822,0.00015876,2]
[419274926,1775087437693,-71.3216673,0.00015876,2]
[419274927,1775087437704,-260.65001187,0.00015876,2]
[419274928,1775087437715,-500.0,0.00015876,2]
[419274929,1775087437725,-500.0,0.00015876,2]
[419274930,1775087437737,-500.0,0.00015876,2]
[419274931,1775087437747,-337.87137933,0.00015876,2]
[419274932,1775087437762,-162.12862067,0.00015876,2]
[419274933,1775087437776,-500.0,0.00015876,2]
[419274934,1775087437787,-402.51718728,0.00015876,2]
[419274935,1775087437800,-97.48281272,0.00015876,2]
[419274936,1775087437811,-500.0,0.00015876,2]
[419274937,1775087437822,-500.0,0.00015876,2]
[419274938,1775087437832,-500.0,0.00015876,2]
[419274939,1775087437844,-500.0,0.00015876,2]
[419274940,1775087437854,-500.0,0.00015876,2]
[419274941,1775087437864,-500.0,0.00015876,2]
[419274942,1775087437875,-500.0,0.00015876,2]
[419274943,1775087437884,-500.0,0.00015876,2]
[419274944,1775087437896,-500.0,0.00015876,2]
[419274946,1775087437905,-500.0,0.00015876,2]
[419274947,1775087437915,-500.0,0.00015876,2]
[419274950,1775087437926,-500.0,0.00015876,2]
[419274952,1775087437938,-500.0,0.00015876,2]
[419274954,1775087437950,-500.0,0.00015876,2]
[419274956,1775087437960,-500.0,0.00015876,2]
[419274958,1775087437970,-500.0,0.00015876,2]
[419274960,1775087437980,-500.0,0.00015876,2]
[419274962,1775087437990,-500.0,0.00015876,2]
[419274964,1775087438001,-500.0,0.00015876,2]
[419274966,1775087438011,-500.0,0.00015876,2]
[419274968,1775087438023,-500.0,0.00015876,2]
[419274970,1775087438034,-500.0,0.00015876,2]
[419274972,1775087438045,-500.0,0.00015876,2]
[419274975,1775087438057,-500.0,0.00015876,2]
[419274977,1775087438067,-500.0,0.00015876,2]
[419274980,1775087438077,-347.26326154,0.00015876,2]
[419274982,1775087438087,-500.0,0.00015876,2]
[419274985,1775087438097,-500.0,0.00015876,2]
[419274988,1775087438108,-500.0,0.00015876,2]
[419274991,1775087438119,-30277.74605134,0.00015899,2]
[419274994,1775087438130,-1976.652,0.00015899,2]
[419274996,1775087438140,-500.0,0.00015899,2]
[419274999,1775087438154,-1000.0,0.000159,2]
[419275001,1775087438165,-5000.0,0.000159,2]
[419275003,1775087438175,-1.2046185,0.000159,2]
[419275027,1775087439850,-7737.55,0.00015222,2]
[419275028,1775087439862,-744.897279,0.0001568,2]
[419275029,1775087439875,-208.57630084,0.000159,2]
[419275030,1775087439888,-613.23479571,0.000159,2]
[419275031,1775087439901,-2495.67509046,0.000159,2]
[419275032,1775087439913,-370.35780072,0.000159,2]
[419275033,1775087439924,-300.48850476,0.000159,2]
[419275034,1775087439937,-712.97834752,0.000159,2]
[419275035,1775087439950,-8.99080722,0.000159,5]
[419275036,1775087439964,-191.00919278,0.000159,5]
[419275037,1775087439974,-4307.08457462,0.000159,2]
[419275038,1775087439984,-197.54,0.00015921,2]
[419275039,1775087439995,-835.67617156,0.00015973,2]
[419275040,1775087440015,-624.0438724,0.00015973,2]
[419275041,1775087440484,-745.98980748,0.00015973,2]
[419275048,1775087443147,-496.598186,0.0001568,2]
[419275049,1775087443158,-4054.75220514,0.00015973,2]
[419275050,1775087443465,-5049.7958873,0.00015973,2]